bitfinex-derivatives/quotes_BNBF0:USTF0_20250309
["timestamp","ask_amount","ask_price","bid_price","bid_amount"]
[1741539603014,1.04416168,560.17,560.05,0.967]
[1741539603313,1.29697006,560.16,560.05,0.967]
[1741539603515,1.29697006,560.15,560.05,0.967]
[1741539604016,1.29697006,560.14,560.05,0.967]
[1741539604215,0.31069209,560.39,560.05,0.967]
[1741539604216,4.7908663,560.27,560.05,0.967]
[1741539604414,1.04506704,560.26,560.05,0.967]
[1741539604616,1.04506704,560.25,560.05,0.967]
[1741539604915,2.34435744,560.24,560.05,0.967]
[1741539605115,1.29923588,560.24,560.05,0.967]
[1741539605616,0.31070596,560.23,560.05,0.967]
[1741539605812,1.04554255,560.22,560.05,0.967]
[1741539606115,0.31070596,560.23,560.05,0.967]
[1741539609014,0.31070596,560.23,559.95,0.999]
[1741539611320,1.04564987,560.22,559.95,0.999]
[1741539611617,1.04564987,560.21,559.95,0.999]
[1741539611814,1.04564987,560.2,559.95,0.999]
[1741539612015,1.04564987,560.19,559.95,0.999]
[1741539612220,1.29993788,560.2,559.95,0.999]
[1741539612417,1.04557573,560.19,559.95,0.999]
[1741539612723,2.3455509,560.18,559.95,0.999]
[1741539612920,1.29993788,560.18,559.95,0.999]
[1741539613120,1.29993788,560.17,559.95,0.999]
[1741539613625,1.04531938,560.16,559.95,0.999]
[1741539613826,0.31070596,560.23,559.95,0.999]
[1741539613827,1.04531938,560.15,559.95,0.999]
[1741539614121,2.3448343,560.14,559.95,0.999]
[1741539614325,1.04532769,560.13,559.95,0.999]
[1741539614525,1.29951492,560.14,559.95,0.999]
[1741539614922,0.31070596,560.23,559.95,0.999]
[1741539615126,1.04581202,560.22,559.95,0.999]
[1741539615325,1.30016981,560.22,559.95,0.999]
[1741539615526,1.0458569,560.21,559.95,0.999]
[1741539615725,2.34615614,560.2,559.95,0.999]
[1741539615921,1.30016981,560.2,559.95,0.999]
[1741539616524,1.30016981,560.19,559.95,0.999]
[1741539616721,0.31070596,560.23,559.95,0.999]
[1741539617228,1.04588471,560.22,559.95,0.999]
[1741539617524,1.30045192,560.22,559.95,0.999]
[1741539618131,2.08008556,560.32,559.95,0.999]
[1741539618329,1.0453361,560.31,559.95,0.999]
[1741539618526,0.31072261,560.21,559.95,0.999]
[1741539618727,1.29976918,560.3,559.95,0.999]
[1741539618931,1.04544828,560.29,559.95,0.999]
[1741539619236,1.04544828,560.28,559.95,0.999]
[1741539619429,1.04544828,560.27,559.95,0.999]
[1741539619632,1.04522209,560.26,559.95,0.999]
[1741539619831,1.04497269,560.25,559.95,0.999]
[1741539620032,1.04472846,560.24,559.95,0.999]
[1741539620228,2.71605192,560.23,559.95,0.999]
[1741539620430,1.04472846,560.22,559.95,0.999]
[1741539620630,1.04472846,560.21,559.95,0.999]
[1741539620828,1.04472846,560.2,559.95,0.999]
[1741539621133,2.34449764,560.19,559.95,0.999]
[1741539621331,1.29976918,560.19,559.95,0.999]
[1741539621527,0.31073093,560.26,559.95,0.999]
[1741539621731,1.04437849,560.25,559.95,0.999]
[1741539621933,1.0444145,560.24,559.95,0.999]
[1741539622129,3.37625232,560.25,559.95,0.999]
[1741539622335,1.04434835,560.24,559.95,0.999]
[1741539622634,1.04441697,560.23,559.95,0.999]
[1741539622832,1.29848152,560.24,559.95,0.999]
[1741539623028,1.04441579,560.23,559.69,0.968]
[1741539623235,6.09149245,560.22,559.7,0.29992286]
[1741539623433,1.04441579,560.21,559.7,0.29992286]
[1741539623734,2.34289731,560.2,559.7,0.29992286]
[1741539624035,1.04438097,560.19,559.7,0.29992286]
[1741539624234,1.29848152,560.2,559.7,0.29992286]
[1741539624437,1.29848152,560.18,559.7,0.29992286]
[1741539624935,2.07795919,560.25,559.7,0.29992286]
[1741539625135,1.04464566,560.24,559.7,0.29992286]
[1741539625335,2.34340085,560.23,559.7,0.29992286]
[1741539625536,1.29875519,560.23,559.7,0.29992286]
[1741539625731,1.29875519,560.22,559.7,0.29992286]
[1741539626235,3.74993092,560.37,559.7,0.29992286]
[1741539626435,2.71623535,560.36,559.7,0.29992286]
[1741539626636,2.71623535,560.35,559.7,0.29992286]
[1741539626834,6.09298903,560.34,559.7,0.29992286]
[1741539627036,4.42135844,560.33,559.7,0.29992286]
[1741539627235,1.04460476,560.32,559.7,0.29992286]
[1741539627437,1.04460476,560.31,559.7,0.29992286]
[1741539627636,1.60918983,560.32,559.69,0.968]
[1741539627839,1.29845335,560.31,559.69,0.968]
[1741539628235,0.31073648,560.32,559.7,0.29980487]
[1741539629337,0.31073648,560.32,559.71,0.3573279]
[1741539629737,0.31073648,560.32,559.72,0.29970248]
[1741539630337,0.31073648,560.32,559.73,0.35731513]
[1741539630538,0.31073648,560.32,559.74,0.29970248]
[1741539630936,0.31073648,560.32,559.75,0.35730236]
[1741539631138,0.31073648,560.32,559.76,0.29970248]
[1741539631335,0.31073648,560.32,559.77,0.3572896]
[1741539631533,1.33673648,560.32,559.78,0.29970248]
[1741539632339,1.33673648,560.32,559.79,0.35727683]
[1741539632539,1.33673648,560.32,559.8,0.29970248]
[1741539632734,1.026,560.32,559.81,0.35726407]
[1741539633036,1.026,560.32,559.82,0.29970248]
[1741539633241,1.026,560.32,559.81,0.35726407]
[1741539633437,1.026,560.32,559.82,0.29968965]
[1741539633941,1.026,560.32,559.81,0.35726407]
[1741539634138,1.026,560.32,559.82,0.29971341]
[1741539638844,1.026,560.32,559.83,0.29974385]
[1741539639046,1.026,560.32,559.82,0.29974385]
[1741539639240,1.026,560.32,559.83,0.29974385]
[1741539639441,1.026,560.32,559.82,0.29974385]
[1741539639639,1.026,560.32,559.83,0.29974385]
[1741539639841,1.861,560.32,559.84,0.29974385]
[1741539640041,1.861,560.32,559.82,0.29974385]
[1741539640243,1.861,560.32,559.83,0.29974385]
[1741539640543,1.861,560.32,559.84,0.29974385]
[1741539640743,1.861,560.32,559.82,0.29974385]
[1741539640943,1.861,560.32,559.83,0.29974385]
[1741539641143,1.861,560.32,559.82,0.29974385]
[1741539641343,1.861,560.32,559.83,0.29974385]
[1741539641545,1.861,560.32,559.82,0.29974385]
[1741539641740,1.861,560.32,559.83,0.29974385]
[1741539641944,1.861,560.32,559.82,0.29974385]
[1741539642143,1.861,560.32,559.83,0.29974385]
[1741539642345,1.861,560.32,559.84,0.29974385]
[1741539642539,1.861,560.32,559.82,0.29974385]
[1741539642744,1.861,560.32,559.83,0.29974385]
[1741539643144,1.861,560.32,559.82,0.29974385]
[1741539643351,1.861,560.32,559.83,0.29974385]
[1741539643544,1.861,560.32,559.82,0.29974385]
[1741539643749,1.861,560.32,559.83,0.29974385]
[1741539643951,1.861,560.32,559.82,0.29974385]
[1741539644149,1.861,560.32,559.81,0.35726407]
[1741539644150,1.861,560.32,559.83,0.29974385]
[1741539644343,1.861,560.32,559.84,0.29974385]
[1741539644547,1.861,560.32,559.85,0.29974385]
[1741539644747,1.861,560.32,559.82,0.29974385]
[1741539644949,1.861,560.32,559.81,0.35726407]
[1741539644950,1.861,560.32,559.83,0.29974385]
[1741539645251,1.861,560.32,559.82,0.29974385]
[1741539645451,1.861,560.32,559.83,0.29974385]
[1741539645648,0.31066436,560.31,559.82,0.29974385]
[1741539645951,0.31066436,560.31,559.83,0.65699179]
[1741539646147,0.31066436,560.31,559.84,0.65698541]
[1741539646344,0.31066436,560.31,559.85,0.29974049]
[1741539647345,1.861,560.32,559.85,0.29974049]
[1741539647551,0.835,560.32,559.85,0.29974049]
[1741539647954,0.835,560.32,559.85,0.65697903]
[1741539648253,0.835,560.32,559.86,0.29974049]
[1741539648547,0.31067268,560.31,559.86,0.29974049]
[1741539648853,0.31067268,560.31,559.85,0.35723854]
[1741539649552,0.31067268,560.31,559.86,0.29976325]
[1741539649752,0.31067268,560.31,559.85,0.35723854]
[1741539650252,0.31067268,560.31,559.86,0.29977813]
[1741539650650,0.857,560.3,559.86,0.29977813]
[1741539651553,0.857,560.3,559.87,0.35722578]
[1741539651753,0.857,560.3,559.88,0.29977813]
[1741539653155,0.857,560.3,559.89,0.29977543]
[1741539653351,0.857,560.3,559.87,0.35722578]
[1741539653352,0.857,560.3,559.88,0.29977543]
[1741539653555,0.857,560.3,559.89,0.29977543]
[1741539653852,0.857,560.3,559.9,0.29977543]
[1741539654047,0.857,560.3,559.91,0.29977543]
[1741539654252,0.857,560.3,559.88,0.29977543]
[1741539654452,0.857,560.3,559.89,0.29977543]
[1741539654654,0.857,560.3,559.87,0.35722578]
[1741539654655,0.31067822,560.29,559.88,0.29977543]
[1741539654952,0.31067822,560.29,559.89,0.29974911]
[1741539655153,0.31067822,560.29,559.9,0.29974911]
[1741539655348,0.31067822,560.29,559.87,0.35722578]
[1741539655349,0.857,560.3,559.88,0.29974911]
[1741539655554,0.857,560.3,559.89,0.35721302]
[1741539655754,0.857,560.3,559.9,0.29974911]
[1741539656149,0.857,560.3,559.91,0.35720026]
[1741539656353,0.857,560.3,559.92,0.29974911]
[1741539656553,0.857,560.3,559.93,0.3571875]
[1741539656753,0.857,560.3,559.94,0.29969743]
[1741539657155,0.857,560.3,559.94,0.65687855]
[1741539657356,0.857,560.3,559.95,0.29969743]
[1741539658352,0.857,560.3,559.96,0.29967534]
[1741539658558,0.857,560.3,559.97,0.65683733]
[1741539658752,0.857,560.3,559.98,0.29967534]
[1741539660456,0.857,560.3,559.99,0.29972038]
[1741539660759,0.857,560.3,560.0,0.29973284]
[1741539660955,0.857,560.3,559.98,0.29973284]
[1741539661160,0.857,560.3,559.99,0.29973284]
[1741539661455,0.857,560.3,559.97,0.35716199]
[1741539661858,0.857,560.3,559.98,0.29965828]
[1741539662658,0.883,560.31,559.98,0.29965828]
[1741539663761,0.883,560.31,559.99,0.35714923]
[1741539664055,0.883,560.31,560.0,0.29965828]
[1741539664260,0.883,560.31,560.01,0.35713647]
[1741539664460,0.883,560.31,560.02,0.29965828]
[1741539664654,0.883,560.31,560.02,0.65678838]
[1741539664860,0.883,560.31,560.03,0.29965828]
[1741539668364,0.883,560.31,560.04,0.35711734]
[1741539668760,0.883,560.31,560.05,0.29962022]
[1741539670463,0.883,560.31,560.04,0.35711734]
[1741539670665,0.883,560.31,560.05,0.29967109]
[1741539671668,0.883,560.31,560.04,0.35711734]
[1741539672260,0.883,560.31,559.46,1.31616822]
[1741539672464,0.883,560.31,559.48,0.35747479]
[1741539672766,0.883,560.31,559.49,0.2998296]
[1741539672965,0.708,560.3,559.49,0.2998296]
[1741539674669,0.708,560.3,559.5,0.35746201]
[1741539674865,0.708,560.3,559.51,0.2998296]
[1741539675268,0.31074481,560.29,559.51,0.2998296]
[1741539675671,0.31074481,560.29,559.52,0.35744924]
[1741539675865,0.31074481,560.29,559.53,0.2998296]
[1741539676065,0.31074481,560.29,559.54,0.35743646]
[1741539676265,0.31074481,560.29,559.55,0.2998296]
[1741539676670,1.049,560.28,559.56,0.35742369]
[1741539676863,1.049,560.28,559.57,0.2998296]
[1741539677067,1.049,560.28,559.58,0.35741091]
[1741539677271,1.049,560.28,559.59,0.2998296]
[1741539677770,0.814,560.27,559.59,0.2998296]
[1741539677970,1.03788159,560.26,559.58,0.35741091]
[1741539678168,1.03788159,560.25,559.58,0.35741091]
[1741539678367,1.03788159,560.24,559.25,1.31616822]
[1741539678569,2.32838603,560.25,559.26,0.29997213]
[1741539678967,2.32838603,560.25,559.28,0.35760263]
[1741539679167,2.32838603,560.25,559.29,0.29997213]
[1741539679373,1.29050444,560.25,559.29,0.29997213]
[1741539679771,2.32760339,560.25,559.29,0.29997213]
[1741539680576,2.69617935,560.24,559.29,0.29997213]
[1741539680774,2.69580469,560.23,559.29,0.29997213]
[1741539680971,4.38985592,560.22,559.28,0.35760263]
[1741539681178,1.03684796,560.21,559.28,0.35760263]
[1741539681781,1.03684796,560.21,559.29,0.30006169]
[1741539682080,1.03684796,560.21,559.28,0.35760263]
[1741539682276,1.29050444,560.23,559.29,0.29998669]
[1741539682477,1.29050444,560.23,559.28,0.35760263]
[1741539682675,2.32650448,560.23,559.28,0.35760263]
[1741539682879,0.31089749,560.24,559.28,0.35760263]
[1741539683280,1.03602542,560.26,559.28,0.35760263]
[1741539683681,0.3109864,560.23,559.28,0.35760263]
[1741539684690,1.60149084,560.23,559.29,0.30007072]
[1741539684881,3.25790687,560.23,559.29,0.30007072]
[1741539685094,2.69244145,560.22,559.29,0.30007072]
[1741539685288,6.04224562,560.22,559.29,0.30007072]
[1741539685591,1.03602542,560.21,559.28,0.35760263]
[1741539686087,2.32652986,560.22,559.28,0.35760263]
[1741539686587,1.03393193,560.21,559.28,0.35760263]
[1741539687384,0.31112402,560.2,559.29,0.30007396]
[1741539687591,0.31112402,560.2,559.28,0.35760263]
[1741539687789,0.31112402,560.2,559.29,0.30010192]
[1741539688093,1.01872118,560.1,559.28,0.35760263]
[1741539688397,3.70169818,560.09,559.28,0.35760263]
[1741539688588,1.01736608,560.07,557.99,1.31616822]
[1741539688784,1.01736608,559.97,558.28,0.31119219]
[1741539688993,1.01736608,559.94,558.29,0.30023332]
[1741539689194,1.01736608,559.91,558.3,0.30023332]
[1741539689387,3.70169818,559.9,558.31,0.30023332]
[1741539689591,1.01736608,559.87,558.32,0.30023332]
[1741539689792,3.97483654,559.86,558.33,0.30023332]
[1741539689994,3.22042688,559.85,558.1,0.30023332]
[1741539690188,3.21227059,559.84,558.11,0.30023332]
[1741539690491,4.50277503,559.83,558.12,0.30037772]
[1741539690686,1.01430281,559.76,558.1,0.30037772]
[1741539690886,2.6759314,559.75,558.11,0.30037772]
[1741539691094,3.21227059,559.74,558.1,0.30037772]
[1741539691292,3.21227059,559.74,558.09,0.35836513]
[1741539691293,4.2265734,559.73,558.12,0.30037772]
[1741539691495,4.2265734,559.72,558.11,0.30037772]
[1741539691695,1.01430281,559.59,558.12,0.30037772]
[1741539691895,2.6759314,559.58,558.13,0.30037772]
[1741539692092,3.21227059,559.57,558.1,0.30037772]
[1741539692396,4.50277503,559.56,558.09,0.35836513]
[1741539692593,3.21227059,559.55,558.1,0.30051432]
[1741539692892,1.02920438,559.54,558.1,0.30051432]
[1741539693086,1.02920438,559.53,558.1,0.30051432]
[1741539693287,1.02920438,559.52,558.1,0.30051432]
[1741539693485,2.52750444,559.55,558.1,0.30051432]
[1741539693486,2.63107642,559.53,558.1,0.30051432]
[1741539693687,1.60187204,559.53,558.11,0.30051432]
[1741539693986,0.3113676,559.53,558.12,0.30051432]
[1741539694196,0.98,559.52,558.1,0.30051432]
[1741539694385,0.98,559.52,558.11,0.30051432]
[1741539694588,0.98,559.52,558.1,0.30051432]
[1741539694796,0.98,559.52,558.11,0.30051432]
[1741539694988,0.98,559.52,558.12,0.30051432]
[1741539695191,0.98,559.52,558.13,0.30051432]
[1741539695388,0.98,559.52,558.1,0.30051432]
[1741539695685,0.98,559.52,558.11,0.30051432]
[1741539696188,0.98,559.52,558.12,0.30051432]
[1741539696495,0.3114972,559.51,558.13,0.30051432]
[1741539696694,0.3114972,559.51,558.1,0.30051432]
[1741539696891,0.3114972,559.51,558.11,0.30051432]
[1741539697187,0.3114972,559.51,558.12,0.30051432]
[1741539697397,0.3114972,559.51,558.13,0.30051432]
[1741539697590,0.3114972,559.51,558.14,0.30051432]
[1741539697894,0.3114972,559.51,558.15,0.30051432]
[1741539698087,0.3114972,559.51,558.16,0.30051432]
[1741539698298,0.98,559.52,558.16,0.30051432]
[1741539698501,0.98,559.52,558.17,0.30051432]
[1741539698698,0.98,559.52,558.18,0.30051432]
[1741539698891,0.98,559.52,558.19,0.30051432]
[1741539699095,0.98,559.52,558.09,0.35836513]
[1741539699096,0.98,559.52,558.2,0.30051432]
[1741539699287,0.98,559.52,558.21,0.30051432]
[1741539699493,0.98,559.52,558.09,0.35836513]
[1741539699494,0.31131607,559.51,558.09,0.35836513]
[1741539699797,0.31131607,559.51,558.1,0.30039329]
[1741539699986,0.31131607,559.51,558.11,0.30039329]
[1741539700185,0.31131607,559.51,558.12,0.30039329]
[1741539700386,0.31131607,559.51,558.13,0.30039329]
[1741539700698,0.31131607,559.51,558.14,0.30039329]
[1741539700992,0.31131607,559.51,558.09,0.35836513]
[1741539700993,0.31131607,559.51,558.15,0.30039329]
[1741539701490,0.31131607,559.51,558.16,0.30039329]
[1741539701695,0.31131607,559.51,558.17,0.30039329]
[1741539701890,0.31131607,559.51,558.19,0.35830093]
[1741539702393,0.31131607,559.51,558.2,0.30039329]
[1741539702594,0.31131607,559.51,558.21,0.30039329]
[1741539702795,0.31131607,559.51,558.2,0.30039329]
[1741539702990,0.31131607,559.51,558.21,0.30039329]
[1741539703202,0.31131607,559.51,558.2,0.30039329]
[1741539703392,0.31131607,559.51,558.21,0.30039329]
[1741539703695,0.31131607,559.51,558.22,0.30039329]
[1741539703894,0.31131607,559.51,558.23,0.30039329]
[1741539704095,0.31131607,559.51,558.24,0.30039329]
[1741539704296,0.98,559.52,558.25,0.30039329]
[1741539704595,0.98,559.52,558.27,0.35824959]
[1741539704896,0.98,559.52,558.28,0.30035984]
[1741539705290,0.98,559.52,558.3,0.35823034]
[1741539705489,0.98,559.52,558.31,0.30035984]
[1741539705694,0.31131746,559.51,558.31,0.30035984]
[1741539705897,0.31131746,559.51,558.33,0.35821109]
[1741539706095,0.31131746,559.51,558.34,0.30035984]
[1741539706291,1.032,559.5,558.35,0.30035984]
[1741539706492,1.032,559.5,558.33,0.35821109]
[1741539706697,1.032,559.5,558.34,0.30034796]
[1741539706902,1.032,559.5,558.35,0.30034796]
[1741539707197,1.032,559.5,558.36,0.30034796]
[1741539707394,1.032,559.5,558.33,0.35821109]
[1741539707395,1.032,559.5,558.34,0.30034796]
[1741539707592,1.032,559.5,558.35,0.30034796]
[1741539707796,1.032,559.5,558.34,0.30034796]
[1741539707991,0.996,559.49,558.35,0.30034796]
[1741539708192,0.996,559.49,558.34,0.30034796]
[1741539708398,0.996,559.49,558.33,0.35821109]
[1741539708705,0.31125481,559.48,558.34,0.30031508]
[1741539708999,1.12525481,559.48,558.36,0.35819184]
[1741539709199,1.12525481,559.48,558.37,0.30031508]
[1741539710299,0.814,559.48,558.37,0.30031508]
[1741539710595,0.814,559.48,558.39,0.3581726]
[1741539710806,0.814,559.48,558.4,0.30031508]
[1741539711001,0.814,559.48,558.42,0.35815336]
[1741539711202,0.814,559.48,558.43,0.30031508]
[1741539711402,0.814,559.48,558.45,0.35813412]
[1741539711597,0.31153206,559.47,558.46,0.30031508]
[1741539711997,0.31153206,559.47,558.47,0.30031508]
[1741539712197,0.814,559.48,558.48,0.30031508]
[1741539712404,0.814,559.48,558.45,0.35813412]
[1741539712405,0.814,559.48,558.49,0.30031508]
[1741539712606,0.814,559.48,558.5,0.30031508]
[1741539713004,0.814,559.48,558.51,0.30031508]
[1741539713199,0.814,559.48,558.52,0.30031508]
[1741539713505,0.814,559.48,558.53,0.30031508]
[1741539713702,0.814,559.48,558.54,0.30009132]
[1741539713903,0.814,559.48,558.55,0.30009132]
[1741539714104,0.814,559.48,558.56,0.30009132]
[1741539714305,0.814,559.48,558.57,0.30009132]
[1741539714609,0.814,559.48,558.58,0.30009132]
[1741539714807,0.814,559.48,558.59,0.30009132]
[1741539715001,0.814,559.48,558.6,0.30009132]
[1741539715201,0.814,559.48,558.62,0.35802513]
[1741539715408,0.814,559.48,558.63,0.30009619]
[1741539715603,0.814,559.48,558.64,0.30009619]
[1741539715804,0.814,559.48,558.65,0.30009619]
[1741539716001,0.814,559.48,558.66,0.30009619]
[1741539716213,0.814,559.48,558.67,0.30009619]
[1741539716406,0.814,559.48,558.62,0.35802513]
[1741539716407,0.814,559.48,558.68,0.30009619]
[1741539716603,0.814,559.48,558.69,0.30009619]
[1741539716811,0.814,559.48,558.7,0.30009619]
[1741539717013,0.814,559.48,558.62,0.35802513]
[1741539717014,0.814,559.48,558.71,0.30009619]
[1741539717205,0.814,559.48,558.72,0.30009619]
[1741539717406,0.814,559.48,558.73,0.30009619]
[1741539717614,0.814,559.48,558.74,0.30009619]
[1741539717820,0.814,559.48,558.62,0.35802513]
[1741539718016,0.814,559.48,558.63,0.29998428]
[1741539718221,0.814,559.48,558.64,0.29998428]
[1741539718518,0.814,559.48,558.65,0.29998428]
[1741539718721,0.814,559.48,558.66,0.29998428]
[1741539719022,0.814,559.48,558.67,0.29998428]
[1741539719220,0.814,559.48,558.68,0.29998428]
[1741539719517,0.814,559.48,558.69,0.29998428]
[1741539719711,0.814,559.48,558.7,0.29998428]
[1741539720018,0.814,559.48,558.71,0.29998428]
[1741539720217,0.814,559.48,558.72,0.29998428]
[1741539720417,0.813,559.47,558.73,0.29998428]
[1741539720619,0.813,559.47,558.62,0.35802513]
[1741539720620,0.813,559.47,558.74,0.65793252]
[1741539720918,0.813,559.47,558.75,0.29998428]
[1741539721110,0.813,559.47,558.76,0.35793542]
[1741539721313,0.813,559.47,558.77,0.29998428]
[1741539721514,0.813,559.47,558.78,0.35792261]
[1741539721709,0.813,559.47,558.79,0.29998428]
[1741539721911,0.813,559.47,558.8,0.3579098]
[1741539722110,0.813,559.47,558.81,0.29998428]
[1741539722318,0.813,559.47,558.82,0.35789699]
[1741539722613,0.813,559.47,558.83,0.29998428]
[1741539723218,0.777,559.46,558.83,0.29998428]
[1741539723413,0.777,559.46,558.84,0.29998428]
[1741539723613,0.777,559.46,558.84,0.35788418]
[1741539723917,0.777,559.46,558.85,0.29998428]
[1741539724114,0.951,559.45,558.85,0.29998428]
[1741539724314,0.951,559.45,558.86,0.35787138]
[1741539724510,0.951,559.45,558.87,0.29998428]
[1741539724713,0.951,559.45,558.88,0.35785857]
[1741539724915,0.951,559.45,558.89,0.29998428]
[1741539725311,1.775,559.45,558.89,0.29998428]
[1741539725516,1.775,559.45,558.9,0.30009392]
[1741539725812,1.775,559.45,558.91,0.30009392]
[1741539726017,1.775,559.45,558.89,0.30009392]
[1741539726218,1.775,559.45,558.9,0.30009392]
[1741539726414,1.775,559.45,558.91,0.30009392]
[1741539726618,1.775,559.45,558.89,0.30009392]
[1741539726818,1.775,559.45,558.9,0.30009392]
[1741539727019,1.775,559.45,558.91,0.65793328]
[1741539727219,1.775,559.45,558.92,0.30001903]
[1741539729021,2.541,559.45,558.93,0.35782656]
[1741539729220,2.541,559.45,558.94,0.30004043]
[1741539730522,2.541,559.45,558.95,0.30000323]
[1741539730817,2.541,559.45,558.93,0.35782656]
[1741539730818,2.541,559.45,558.96,0.29998092]
[1741539731018,2.541,559.45,558.97,0.29998092]
[1741539731214,2.541,559.45,558.98,0.29998092]
[1741539731421,2.541,559.45,558.99,0.29998092]
[1741539731719,2.541,559.45,559.0,0.65776267]
[1741539731926,2.541,559.45,559.01,0.65775627]
[1741539732225,2.541,559.45,559.02,0.65774987]
[1741539732419,2.541,559.45,559.03,0.29998092]
[1741539732622,2.541,559.45,559.04,0.65773707]
[1741539732919,2.541,559.45,559.05,0.29998092]
[1741539733125,2.541,559.45,559.06,0.29998092]
[1741539733327,2.541,559.45,559.04,0.35775615]
[1741539733524,2.541,559.45,559.07,0.29981404]
[1741539733823,2.541,559.45,559.08,0.29981404]
[1741539734025,1.28087478,559.45,559.04,0.35775615]
[1741539734221,1.28087478,559.45,559.05,0.29973852]
[1741539734526,0.7525418,559.47,559.06,0.29973852]
[1741539734728,0.7525418,559.47,559.07,0.29973852]
[1741539734926,0.7525418,559.47,559.08,0.29973852]
[1741539735221,0.7525418,559.47,559.09,0.29973852]
[1741539735425,0.7525418,559.47,559.1,0.29973852]
[1741539735627,4.49272285,561.07,559.11,0.29973852]
[1741539735826,3.00502881,561.06,559.12,0.29973852]
[1741539736023,2.67718914,561.05,559.13,0.29973852]
[1741539736228,2.67718914,561.05,559.14,0.29964027]
[1741539736428,2.30992911,561.04,559.15,0.29964027]
[1741539736629,0.31063663,561.06,559.16,0.29964027]
[1741539736829,0.31063663,561.06,559.17,0.29964027]
[1741539737033,0.31063663,561.06,559.18,0.29964027]
[1741539737233,0.682,561.05,559.19,0.29964027]
[1741539737428,0.682,561.05,559.2,0.29964027]
[1741539737732,0.682,561.05,559.21,0.29964027]
[1741539737733,2.349,561.04,559.21,0.29964027]
[1741539737933,2.349,561.04,559.22,0.29964027]
[1741539738134,2.349,561.04,559.23,0.29955119]
[1741539738435,2.349,561.04,559.24,0.29955119]
[1741539739033,2.349,561.04,559.25,0.29955119]
[1741539739233,2.349,561.04,559.26,0.29955119]
[1741539739633,2.349,561.04,559.27,0.29955119]
[1741539739834,2.349,561.04,559.28,0.29955119]
[1741539740033,2.349,561.04,559.29,0.29955119]
[1741539740228,2.349,561.04,559.3,0.29955119]
[1741539740432,2.349,561.04,559.31,0.29955119]
[1741539740634,2.349,561.04,559.32,0.29955119]
[1741539740837,4.20898955,561.03,559.33,0.29955119]
[1741539741034,4.20898955,561.02,559.34,0.29955119]
[1741539741229,1.01233081,560.99,559.35,0.29955119]
[1741539741431,2.66153045,560.98,559.36,0.29955119]
[1741539741631,3.19665874,560.97,559.36,0.29955119]
[1741539741828,3.19665874,560.96,559.38,0.3575387]
[1741539742035,2.66153045,560.95,559.39,0.29955119]
[1741539742235,1.02366556,560.94,559.4,0.29955119]
[1741539742535,0.83,561.01,559.38,0.3575387]
[1741539742536,1.30081217,560.93,559.41,0.29955119]
[1741539742836,1.30081217,561.0,559.42,0.29955119]
[1741539743037,1.30081217,561.0,559.43,0.29955119]
[1741539743230,1.30081217,560.99,559.44,0.29955119]
[1741539743431,1.30081217,560.99,559.38,0.3575387]
[1741539743736,1.30081217,560.99,559.39,0.29951386]
[1741539743936,0.83,561.01,559.4,0.29951386]
[1741539744133,0.83,561.01,559.41,0.29951386]
[1741539744529,0.83,561.01,559.42,0.29951386]
[1741539744837,0.83,561.01,559.43,0.29951386]
[1741539745038,0.83,561.01,559.44,0.29951386]
[1741539745236,0.83,561.01,559.45,0.29951386]
[1741539745630,0.83,561.01,559.46,0.29951386]
[1741539745830,0.83,561.01,559.47,0.29951386]
[1741539746038,0.83,561.01,559.48,0.29951386]
[1741539746238,0.83,561.01,559.49,0.29951386]
[1741539746438,0.83,561.01,559.5,0.29951386]
[1741539746736,0.83,561.01,559.51,0.29951386]
[1741539746934,0.83,561.01,559.38,0.3575387]
[1741539746935,0.83,561.01,559.52,0.29951386]
[1741539747332,0.83,561.01,559.38,0.3575387]
[1741539747535,0.83,561.01,559.39,0.29928557]
[1741539747738,0.83,561.01,559.4,0.29928557]
[1741539747937,0.83,561.01,559.41,0.29928557]
[1741539748133,0.83,561.01,559.42,0.29928557]
[1741539748337,0.83,561.01,559.43,0.29928557]
[1741539748537,0.83,561.01,559.44,0.29928557]